Cogmind - Beta 13 @@@ ROGUE MODE // 2024.04.10 @ 13:45:48 Player: Flex Pexico Result: Destroyed by C-57 Dissector with Dual-blade Saw Performance ------------- Evolutions (8) 4000 Regions Visited (19) 3800 Robots Destroyed (185) 925 Value Destroyed (5180) 5180 Prototype IDs (44) 880 Alien Tech Used (2) 400 Bonus (1058) 1058 TOTAL SCORE: 16243 Bonus ------- High Alert Combat Kills 340 Follower Combat Kills 118 Aligned with FarCom 300 Met Zhirov 300 Cogmind --------- Core Integrity 0/1450 Matter 250/300 Energy 98/100 System Corruption 0% Temperature Cool (0) Movement Core (50) Location -2/Research Parts ------- > --- POWER (3) -------- (None) > --- PROPULSION (5) --- (None) > --- UTILITY (13) ----- (None) > --- WEAPON (2) ------- (None) > --- INVENTORY (5) ---- Improved Utility Shielding Improved Shield Generator Peak State ------------ > --- POWER ------------ Light Angular Momentum Engine > --- PROPULSION ------- VTOL Module VTOL Module VTOL Module Cooled Field Propulsion Drive > --- UTILITY ---------- Advanced Weight Redist. System Structural Scanner Armor Integrity Analyzer Advanced Transmission Jammer Advanced ECM Suite Improved Shield Generator Hacking Suite Improved Hacking Suite Advanced Hacking Suite Advanced Hacking Suite System Shield > --- WEAPON ----------- Wave Gun Heavy Dispersion Rifle > --- INVENTORY -------- VTOL Module Improved Utility Shielding [Rating: 80] Favorites ----------- Power Light Nuclear Core Engine Improved Ion Engine Power Core Light Nuclear Core Reactor Heavy Antimatter Reactor Propulsion Wheel Treads Improved Treads Leg Myomer Leg Wheel Wheel Hover Unit Improved Antigrav System Flight Unit Xenon Bombardment Thruster Utility Hacking Suite Device Sensor Array Storage Large Storage Unit Processor Armor Integrity Analyzer Hackware Hacking Suite Protection Light Armor Plating Weapon Shotgun Energy Gun Improved Heavy Laser Ballistic Gun Shotgun Ballistic Cannon Flak Cannon Launcher Mini Grenade Launcher Special Weapon Mining Laser Impact Weapon Impact Mace Slashing Weapon Axe Piercing Weapon Enhanced Force Lance Build | -11 -10 -10 -9 -9 -9 -8 -8 -7 -6 -6 -6 -5 -5 -5 -5 -4 -4 -3 -2 ------- Run | Yrd Mat Min Mat Min Exi Min Mat Fac Fac Low Low Fac Upp Upp Zhi Pro Fac Res Res Slots Evolved 16 | . . . 2 . . . 2 2 2 . . 2 . . . . 2 2 2 Power 2 | . . . . . . . . . 1 . . . . . . . . . 1 Propulsion 3 | . . . 1 . . . . 1 . . . . . . . . 1 . . Utility 11 | . . . 1 . . . 2 1 1 . . 2 . . . . 1 2 1 Weapon . | . . . . . . . . . . . . . . . . . . . . Parts Attached 246 | 6 8 5 11 14 . 4 47 48 18 . . 3 4 2 7 4 49 9 7 Power 20 | 1 1 . 1 . . . 4 5 3 . . . . . 1 . 3 . 1 Engine 10 | 1 1 . . . . . 1 2 1 . . . . . . . 3 . 1 Core 9 | . . . 1 . . . 3 3 2 . . . . . . . . . . Reactor 1 | . . . . . . . . . . . . . . . 1 . . . . Propulsion 54 | 2 1 1 2 3 . . 8 9 2 . . . . . 1 . 24 1 . Treads 9 | 1 1 . 2 1 . . 4 . . . . . . . . . . . . Leg 3 | . . . . . . . 1 . . . . . . . . . 2 . . Wheel 8 | 1 . 1 . 2 . . 3 . . . . . . . . . 1 . . Hover 8 | . . . . . . . . . . . . . . . . . 8 . . Flight 26 | . . . . . . . . 9 2 . . . . . 1 . 13 1 . Utility 53 | 1 2 . 4 3 . 1 10 5 1 . . 1 4 . 2 2 11 4 2 Device 20 | . 1 . 1 2 . . 1 1 . . . . 4 . . . 6 4 . Storage 5 | 1 1 . . . . . 1 . . . . . . . . 1 1 . . Processor 7 | . . . 1 . . . 3 1 1 . . . . . . . 1 . . Hackware 8 | . . . . . . . . 3 . . . 1 . . 1 . 2 . 1 Protection 13 | . . . 2 1 . 1 5 . . . . . . . 1 1 1 . 1 Artifact . | . . . . . . . . . . . . . . . . . . . . Weapon 119 | 2 4 4 4 8 . 3 25 29 12 . . 2 . 2 3 2 11 4 4 Energy Gun 21 | 2 . . 1 . . . 1 . 2 . . 2 . . 2 2 2 4 3 Energy Cannon . | . . . . . . . . . . . . . . . . . . . . Ballistic Gun 37 | . 3 2 3 4 . 1 10 6 2 . . . . . . . 6 . . Ballistic Cannon 3 | . . . . . . . 3 . . . . . . . . . . . . Launcher 31 | . 1 2 . 3 . 2 9 8 4 . . . . 1 . . 1 . . Special Weapon 2 | . . . . 1 . . . . . . . . . . . . 1 . . Impact Weapon 15 | . . . . . . . 2 6 4 . . . . 1 1 . 1 . . Slashing Weapon 9 | . . . . . . . . 9 . . . . . . . . . . . Piercing Weapon 1 | . . . . . . . . . . . . . . . . . . . 1 Special Melee Weapon . | . . . . . . . . . . . . . . . . . . . . Unidentified Prototypes 13 | . . . 1 1 . . 1 3 1 . . . . . 4 . 1 1 . Parts Lost 65 | . . . 2 5 . . 14 7 5 . . . 4 3 . . 12 4 9 Power 6 | . . . . . . . 1 1 1 . . . 1 . . . . 1 1 Propulsion 28 | . . . 1 3 . . 6 4 1 . . . 2 1 . . 4 1 5 Utility 22 | . . . . 2 . . 7 1 1 . . . 1 2 . . 3 2 3 Weapon 9 | . . . 1 . . . . 1 2 . . . . . . . 5 . . Highest Loss Streak 9 | . . . 1 2 . . 7 5 4 . . . 2 2 . . 6 3 9 To Critical Strikes 1 | . . . . 1 . . . . . . . . . . . . . . . Average Slot Usage (%) 84 | . 96 100 99 92 100 88 89 72 85 86 86 75 71 46 42 51 71 78 46 Engine 3 | . 14 14 3 . . . . 3 5 6 6 5 4 . . . 2 4 . Core 5 | . . . 7 11 11 11 8 3 6 6 6 5 4 . . . . . . Treads 9 | . 14 14 21 21 22 22 12 . . . . . . . . . . . . Wheel 6 | . 14 14 11 10 11 11 11 . . . . . . . . . 2 . . Flight 6 | . . . . . . . . 17 25 26 26 23 20 9 2 5 7 20 12 Device 5 | . 10 14 4 4 22 1 1 9 . . . . 3 4 . . 5 17 8 Storage 8 | . 14 14 11 11 11 11 17 . . . . . . . . . 5 . . Processor 6 | . . . 10 1 . . 6 6 12 13 13 11 11 11 11 11 11 4 3 Hackware 9 | . . . . . . . . 22 20 20 20 21 20 17 18 23 20 22 15 Protection 4 | . . . 6 9 . 10 13 . . . . . . . . 2 2 . 1 Ballistic Gun 11 | . 27 27 22 19 22 11 11 2 3 6 6 1 . . . . 6 . . Launcher 1 | . . . . . . 10 1 . . . . . . . . . . . . Impact Weapon 1 | . . . . . . . . 2 5 6 6 5 3 1 3 2 . . . Naked Turns 23 | . . . . . . . . . . . . . . . . . . . 23 Heaviest Build 52 | 13 34 34 38 39 33 39 52 20 31 23 23 23 22 10 21 11 36 26 16 Greatest Support 58 | 20 23 10 23 43 10 10 40 26 32 23 23 23 23 11 5 5 58 32 23 Greatest Overweight (x) 12 | 1 3 3 3 3 3 3 12 1 1 . . . 1 . 4 2 4 . 1 Average Overweight (x) . | . 2 2 2 2 3 3 3 . . . . . . . . . . . . Largest Inventory Capacity 15 | 8 15 15 15 15 15 15 15 15 5 5 5 5 5 5 5 5 5 5 5 Average Capacity 10 | 7 13 15 15 15 15 15 15 5 5 5 5 5 5 5 5 5 5 5 5 Most Carried 15 | 2 8 9 15 15 15 15 15 12 5 3 3 5 5 5 5 5 5 5 4 Average Carried 8 | 1 7 8 14 12 14 11 13 4 3 3 3 3 4 4 4 3 3 2 3 Final Capacity 15 | 8 15 15 15 15 15 15 15 5 5 5 5 5 5 5 5 5 5 5 5 Final Carried 15 | 2 8 8 14 13 15 11 13 3 3 3 3 4 5 4 4 4 4 4 2 Class Distribution -------------------- 47% | Mutant 20% | Hacker-Sprinter 14% | Hacker-Mutant 11% | Scavenger-Mutant 3% | Wizard-Sprinter Dominant Class ---------------- Mutant | -10/Materials Mutant | -10/Mines Mutant | -9/Materials Mutant | -9/Mines Mutant | -9/Exiles Mutant | -8/Mines Scavenger-Mutant | -8/Materials Hacker-Sprinter | -7/Factory Hacker-Sprinter | -6/Factory Hacker-Sprinter | -6/Lower Caves Hacker-Sprinter | -6/Lower Caves Hacker-Sprinter | -5/Factory Hacker-Sprinter | -5/Upper Caves Hacker-Mutant | -5/Upper Caves Hacker-Mutant | -5/Zhirov Hacker-Mutant | -4/Proximity Caves Hacker-Mutant | -4/Factory Wizard-Sprinter | -3/Research Hacker-Sprinter | -2/Research Resources | -11 -10 -10 -9 -9 -9 -8 -8 -7 -6 -6 -6 -5 -5 -5 -5 -4 -4 -3 -2 ----------- Run | Yrd Mat Min Mat Min Exi Min Mat Fac Fac Low Low Fac Upp Upp Zhi Pro Fac Res Res Matter Collected 5561 | 221 299 86 631 415 . 165 1586 549 405 99 . . 50 35 101 70 715 134 . Remotely . | . . . . . . . . . . . . . . . . . . . . Salvage Created 5938 | . 354 63 886 532 . 20 1674 597 647 . . . . 35 217 73 707 133 . Parts 355 | . 23 9 67 43 . 3 99 29 22 . . . . 7 1 7 42 3 . Haulers Intercepted 12 | . 1 . 4 . . . 4 2 1 . . . . . . . . . . Recyclers Shooed 5 | . 1 . . 2 . . 1 . . . . . . . . . . 1 . Parts Field Recycled 11 | . . . . . . . . . . . . . . . . . 11 . . Retrieved Matter 370 | . . . . . . . . . . . . . . . . . 370 . . Parts Self-Destructed 34 | . . . . . . . . . . 11 . . 8 7 1 7 . . . Prevented . | . . . . . . . . . . . . . . . . . . . . Kills | -11 -10 -10 -9 -9 -9 -8 -8 -7 -6 -6 -6 -5 -5 -5 -5 -4 -4 -3 -2 ------- Run | Yrd Mat Min Mat Min Exi Min Mat Fac Fac Low Low Fac Upp Upp Zhi Pro Fac Res Res Combat Hostiles Destroyed 121 | . 12 3 14 12 . 3 33 9 13 . . . . 5 . 3 14 . . Melee 5 | . . . . . . . 1 2 2 . . . . . . . . . . Guns 62 | . 10 . 14 6 . . 12 3 . . . . . . . 3 14 . . Cannons 9 | . . . . . . . 9 . . . . . . . . . . . . AOE 43 | . 2 3 . 6 . 3 11 4 10 . . . . 4 . . . . . Classes Destroyed 16 | . 5 . 2 5 . . 1 1 2 . . . . . . . . . . Worker 16 | . 1 3 1 3 . 1 1 1 2 . . . . . . . 3 . . Builder 18 | . . . . 1 . . 8 2 6 . . . . . . . 1 . . Tunneler 2 | . . . . 1 . . . . . . . . . . . . 1 . . Hauler 12 | . 1 . 4 . . . 4 2 1 . . . . . . . . . . Recycler 10 | . . . . 2 . . 5 2 . . . . . . . . . 1 . Mechanic 1 | . . . . . . . . . 1 . . . . . . . . . . Operator 4 | . 1 . 2 . . . 1 . . . . . . . . . . . . Watcher 2 | . . . 1 . . . . . 1 . . . . . . . . . . Swarmer 34 | . 6 3 . 3 . 3 4 . . . . . . 5 . 3 7 . . Grunt 52 | . 6 . 9 7 . . 16 3 11 . . . . . . . . . . Brawler 2 | . . . . 1 . . 1 . . . . . . . . . . . . Duelist 1 | . . . . . . . . . 1 . . . . . . . . . . Sentry 15 | . . . 5 . . . 8 1 . . . . . . . . 1 . . Hunter 10 | . . . . . . . 4 4 . . . . . . . . 2 . . Programmer 6 | . . . . . . . . 1 1 . . . . . . . 4 . . Assembled 1 | . . . . 1 . . . . . . . . . . . . . . . Best Kill Streak 13 | . 3 6 3 6 . 3 8 4 13 . . . . 5 . 3 4 1 . Combat Bots Only 11 | . 3 3 3 3 . 3 7 2 11 . . . . 5 . 3 4 . . Max Kills in Single Turn 7 | . 3 4 1 3 . 3 3 2 7 . . . . 4 . 1 2 1 . Gunslinging . | . . . . . . . . . . . . . . . . . . . . Exploded 6 | . 2 3 . 3 . 3 3 1 6 . . . . 4 . . . . . Melee 1 | . . . . . . . 1 1 1 . . . . . . . . . . Uniques/NPCs Destroyed . | . . . . . . . . . . . . . . . . . . . . Combat | -11 -10 -10 -9 -9 -9 -8 -8 -7 -6 -6 -6 -5 -5 -5 -5 -4 -4 -3 -2 -------- Run | Yrd Mat Min Mat Min Exi Min Mat Fac Fac Low Low Fac Upp Upp Zhi Pro Fac Res Res Hostile Shots Fired 757 | . 25 2 56 33 . 2 205 65 35 2 2 . 24 20 . 20 159 15 92 Missed 245 | . 10 1 14 8 . 1 54 26 12 1 1 . 10 9 . 5 48 6 39 Damage Taken 10125 | . 192 87 569 477 . 10 2335 938 590 22 27 . 278 276 . 229 2091 208 1796 Core 3457 | . 39 42 10 74 . . 298 403 145 . . . 80 128 . 95 635 53 1455 Absorbed by Shields . | . . . . . . . . . . . . . . . . . . . . Redirected to Shielding 223 | . . . . . . . . . . . . . . . . 16 143 . 64 Core Remaining (%) 68 | 100 . 67 . . . 79 45 42 . . 82 . . . . 63 44 95 . Volleys Fired 347 | . 28 9 46 49 . 1 105 16 12 . . . . 3 3 8 60 2 5 Largest 2 | . 2 2 2 2 . 2 2 2 2 . . . . 1 2 2 2 2 2 Hottest 175 | . 53 60 46 100 . 66 69 69 78 . . . . 43 130 146 146 175 175 Shots Fired 647 | . 56 18 91 84 . 3 210 25 16 . . . . 3 6 16 106 4 9 Gun 511 | . 55 16 91 64 . . 133 17 1 . . . . . 6 16 99 4 9 Cannon 49 | . . . . . . . 49 . . . . . . . . . . . . Launcher 74 | . 1 2 . 7 . 3 28 8 15 . . . . 3 . . 7 . . Special 13 | . . . . 13 . . . . . . . . . . . . . . . Kinetic 519 | . 55 16 91 64 . . 182 17 1 . . . . . . . 93 . . Thermal 54 | . . . . 13 . . . . . . . . . . 6 16 6 4 9 Explosive 74 | . 1 2 . 7 . 3 28 8 15 . . . . 3 . . 7 . . Electromagnetic . | . . . . . . . . . . . . . . . . . . . . Robot Hit Streak 15 | . 6 5 15 11 . 3 14 5 4 . . . . 1 3 4 6 5 7 Robot Miss Streak 8 | . 6 2 2 4 . 1 7 7 3 . . . . 2 1 8 8 . 1 Penetration Max 1 | . . . . . . . 1 . . . . . . . . . 1 . . Secondary Targets 2 | . . . . . . . . . . . . . . . . 2 . . . Max Gunslinging Chain 1 | . . . . . . . . . . . . . . . . 1 . . . Shots Hit Robots 456 | . 41 12 72 42 . 2 153 33 20 . . . . 4 6 6 53 4 8 Core Hits 339 | . 26 8 43 27 . 3 123 29 33 . . . . 4 3 3 33 2 2 Critical Kills 7 | . . . 1 . . . . 1 3 . . . . . . . 2 . . Critical Parts Destroyed 7 | . . . . . . . . 2 4 . . . . . . . 1 . . Critical Strikes 15 | . . . 1 . . . . 3 7 . . . . . . . 3 . 1 Burn 1 | . . . . . . . . . . . . . . . . . . . 1 Destroy 4 | . . . 1 . . . . . . . . . . . . . 3 . . Smash 10 | . . . . . . . . 3 7 . . . . . . . . . . Melee Attacks 108 | . . . . . . . 7 34 53 . . 1 . 3 1 . 8 . 1 Impact 98 | . . . . . . . 7 25 53 . . 1 . 3 1 . 8 . . Slashing 9 | . . . . . . . . 9 . . . . . . . . . . . Piercing 1 | . . . . . . . . . . . . . . . . . . . 1 Sneak Attacks 14 | . . . . . . . . 5 9 . . . . . . . . . . Combat Hostiles . | . . . . . . . . . . . . . . . . . . . . Follow-up Attacks . | . . . . . . . . . . . . . . . . . . . . Damage Inflicted 15541 | . 664 348 1087 1101 . 242 4156 1658 3545 . . . . 529 352 120 1421 107 211 Guns 6307 | . 606 187 1087 581 . . 1539 235 23 . . . . . 190 120 1421 107 211 Cannons 816 | . . . . . . . 816 . . . . . . . . . . . . Explosions 5878 | . 58 161 . 519 . 242 1755 537 2208 . . . . 398 . . . . . Melee 2519 | . . . . . . . 26 886 1314 . . . . 131 162 . . . . Ramming 21 | . . . . 1 . . 20 . . . . . . . . . . . . Kinetic 6373 | . 606 187 1087 581 . . 2355 235 23 . . . . . . . 1299 . . Thermal 834 | . . . . . . . . 51 33 . . . . . 190 120 122 107 211 Explosive 5794 | . 58 161 . 519 . 242 1755 486 2175 . . . . 398 . . . . . Electromagnetic . | . . . . . . . . . . . . . . . . . . . . Impact 2380 | . . . . . . . 26 747 1314 . . . . 131 162 . . . . Slashing 139 | . . . . . . . . 139 . . . . . . . . . . . Piercing . | . . . . . . . . . . . . . . . . . . . . Highest Corruption 4 | . . . . 4 4 4 . 4 . . . . 1 1 1 1 4 . . Average Corruption 2 | . . . . 4 4 4 . 4 . . . . 1 1 1 1 2 . . Corruption Purged . | . . . . . . . . . . . . . . . . . . . . Corruption Blocked . | . . . . . . . . . . . . . . . . . . . . Effects 70 | . . . . 16 4 16 . 1 . . . . 2 1 4 4 22 . . Message Errors 16 | . . . . 4 2 7 . . . . . . . . . . 3 . . Matter Fused 16 | . . . . 4 1 2 . . . . . . . . 1 . 8 . . Heat Flow Errors 15 | . . . . 4 1 1 . . . . . . 2 . . 2 5 . . Energy Discharges 3 | . . . . . . 2 . . . . . . . . . 1 . . . Parts Rejected 1 | . . . . . . 1 . . . . . . . . . . . . . Parts Fused 2 | . . . . . . . . . . . . . . . 1 . 1 . . Data Loss (minor) 7 | . . . . 2 . . . . . . . . . 1 1 1 2 . . Data Loss (major) 4 | . . . . . . 2 . . . . . . . . 1 . 1 . . Misfires 2 | . . . . . . 1 . 1 . . . . . . . . . . . Alerts 2 | . . . . 1 . . . . . . . . . . . . 1 . . Weapon Failures 2 | . . . . 1 . . . . . . . . . . . . 1 . . Overload Shots . | . . . . . . . . . . . . . . . . . . . . Overflow Damage 1606 | . . 15 . 15 . 45 91 388 970 . . . . 49 33 . . . . Projectiles . | . . . . . . . . . . . . . . . . . . . . Explosions 323 | . . 15 . 15 . 45 91 39 113 . . . . 5 . . . . . Melee 1283 | . . . . . . . . 349 857 . . . . 44 33 . . . . Knockbacks 31 | . . . . . . . 23 3 4 . . . . . 1 . . . . Impact 8 | . . . . . . . . 3 4 . . . . . 1 . . . . Kinetic 21 | . . . . . . . 21 . . . . . . . . . . . . Secondary 2 | . . . . . . . 2 . . . . . . . . . . . . Self-Inflicted Damage 756 | . . 81 . 147 . . 104 170 140 . . . . 114 . . . . . Shots 19 | . . 2 . 4 . . 3 3 5 . . . . 2 . . . . . Rammed 2 | . . . . 1 . . 1 . . . . . . . . . . . . Targets Rammed 2 | . . . . 1 . . 1 . . . . . . . . . . . . Kicked . | . . . . . . . . . . . . . . . . . . . . Crushed . | . . . . . . . . . . . . . . . . . . . . Highest Temperature 342 | . 6 3 342 200 255 233 310 17 201 1 1 . 105 . 18 310 183 176 128 Average Temperature 54 | . 2 2 51 50 129 103 87 6 19 1 1 . 42 . 9 149 67 95 65 Received Heat Transfer 1395 | . 36 . 255 132 . . 594 105 153 . . . 63 . . . 27 30 . Siege Activations . | . . . . . . . . . . . . . . . . . . . . Robots Corrupted . | . . . . . . . . . . . . . . . . . . . . Combat Hostiles . | . . . . . . . . . . . . . . . . . . . . Parts Fried 29 | . . . . . . . . 7 16 . . . . 1 5 . . . . Impact Corruptions 31 | . . . . . . . . 9 18 . . . . 2 2 . . . . Robots Melted . | . . . . . . . . . . . . . . . . . . . . Combat Hostiles . | . . . . . . . . . . . . . . . . . . . . Parts Melted 1 | . . . . . . . . . . . . . . . . . . 1 . Heat Transferred 1210 | . . . . . . . . 50 50 . . . . . 222 185 185 148 370 Parts Sabotaged . | . . . . . . . . . . . . . . . . . . . . Parts Stolen . | . . . . . . . . . . . . . . . . . . . . Parts Stripped . | . . . . . . . . . . . . . . . . . . . . Power Chain Reactions . | . . . . . . . . . . . . . . . . . . . . Alert | -11 -10 -10 -9 -9 -9 -8 -8 -7 -6 -6 -6 -5 -5 -5 -5 -4 -4 -3 -2 ------- Run | Yrd Mat Min Mat Min Exi Min Mat Fac Fac Low Low Fac Upp Upp Zhi Pro Fac Res Res Peak Influence 749 | . 181 124 219 280 . 165 749 474 704 . . 205 . . . . 361 277 195 Initial 340 | . . 23 . 55 . . . 340 212 . . 188 . . . . 46 153 45 Average 206 | . 85 78 103 112 . 53 300 339 543 . . 195 . . . . 128 214 78 Maximum Alert Level 3 | . . . 1 1 . . 3 2 3 . . 1 . . . . 1 1 . Low Security (%) 64 | 100 100 100 93 80 . 100 55 13 . . . 57 . . . . 69 30 100 Level 1 16 | . . . 6 19 . . 3 56 3 . . 43 . . . . 30 69 . Level 2 16 | . . . . . . . 28 29 93 . . . . . . . . . . Level 3 2 | . . . . . . . 12 . 3 . . . . . . . . . . Level 4 . | . . . . . . . . . . . . . . . . . . . . Level 5 . | . . . . . . . . . . . . . . . . . . . . High Security . | . . . . . . . . . . . . . . . . . . . . Max Security . | . . . . . . . . . . . . . . . . . . . . Squads Dispatched 38 | . 2 . 2 1 . . 9 8 4 . . 1 . . . . 7 1 3 Investigation 16 | . 1 . 1 . . . 4 6 . . . . . . . . 4 . . Extermination 5 | . . . . . . . . 1 . . . . . . . . 3 1 . Reinforcement 16 | . 1 . 1 1 . . 5 1 3 . . 1 . . . . . . 3 Assault 1 | . . . . . . . . . 1 . . . . . . . . . . Garrison . | . . . . . . . . . . . . . . . . . . . . Intercept . | . . . . . . . . . . . . . . . . . . . . Searches Triggered . | . . . . . . . . . . . . . . . . . . . . Construction Impeded 6 | . . . . 1 . . 3 1 1 . . . . . . . . . . Haulers Reinforced 1 | . . . . . . . . . 1 . . . . . . . . . . Active Scanning Responses . | . . . . . . . . . . . . . . . . . . . . Cargo Convoy Interrupts . | . . . . . . . . . . . . . . . . . . . . Stealth | -11 -10 -10 -9 -9 -9 -8 -8 -7 -6 -6 -6 -5 -5 -5 -5 -4 -4 -3 -2 --------- Run | Yrd Mat Min Mat Min Exi Min Mat Fac Fac Low Low Fac Upp Upp Zhi Pro Fac Res Res Distress Signals 18 | . 3 . 2 . . . 8 1 1 . . . . . . . 2 . 1 Communications Jammed . | . . . . . . . . . . . . . . . . . . . . Distress Signals . | . . . . . . . . . . . . . . . . . . . . Times Spotted 275 | . 24 3 25 12 . 6 59 16 26 3 3 1 17 9 . 4 24 18 25 Peak Tracking Total 17 | . 4 3 3 3 . 3 7 6 5 3 7 1 11 5 . 3 6 10 17 Tactical Retreats 34 | . . . 2 . . 1 3 7 1 . . . 6 1 . 1 4 4 4 Traps | -11 -10 -10 -9 -9 -9 -8 -8 -7 -6 -6 -6 -5 -5 -5 -5 -4 -4 -3 -2 ------- Run | Yrd Mat Min Mat Min Exi Min Mat Fac Fac Low Low Fac Upp Upp Zhi Pro Fac Res Res Traps Triggered 10 | . 2 . . . . . 2 2 1 . . . . . . . 2 1 . Indirectly . | . . . . . . . . . . . . . . . . . . . . Trap Hack Attempts . | . . . . . . . . . . . . . . . . . . . . Triggered . | . . . . . . . . . . . . . . . . . . . . Disarmed . | . . . . . . . . . . . . . . . . . . . . Reprogrammed . | . . . . . . . . . . . . . . . . . . . . Reused . | . . . . . . . . . . . . . . . . . . . . Traps Extracted . | . . . . . . . . . . . . . . . . . . . . Installed . | . . . . . . . . . . . . . . . . . . . . Triggered 1 | . . . . . . . . 1 . . . . . . . . . . . Machines | -11 -10 -10 -9 -9 -9 -8 -8 -7 -6 -6 -6 -5 -5 -5 -5 -4 -4 -3 -2 ---------- Run | Yrd Mat Min Mat Min Exi Min Mat Fac Fac Low Low Fac Upp Upp Zhi Pro Fac Res Res Machines Disabled 17 | . . . . . . 1 2 4 6 . . . . . 1 . 3 . . Max in Single Turn 4 | . . . . . . 1 2 4 4 . . . . . 1 . 1 . . Garrison Access 5 | . . . . . . . 1 1 2 . . . . . . . 1 . . Machines Repaired . | . . . . . . . . . . . . . . . . . . . . Machines Dismantled . | . . . . . . . . . . . . . . . . . . . . Machines Sabotaged . | . . . . . . . . . . . . . . . . . . . . Overloaded Fab Kills . | . . . . . . . . . . . . . . . . . . . . Hacking | -11 -10 -10 -9 -9 -9 -8 -8 -7 -6 -6 -6 -5 -5 -5 -5 -4 -4 -3 -2 --------- Run | Yrd Mat Min Mat Min Exi Min Mat Fac Fac Low Low Fac Upp Upp Zhi Pro Fac Res Res Machines Accessed 58 | . . 1 4 . 1 . 9 13 9 2 . . . . 9 . 6 3 1 Terminals 37 | . . 1 4 . . . 8 8 7 . . . . . . . 5 3 1 Fabricators 2 | . . . . . . . . 2 . . . . . . . . . . . Repair Stations . | . . . . . . . . . . . . . . . . . . . . Recycling Units . | . . . . . . . . . . . . . . . . . . . . Scanalyzers 2 | . . . . . . . . 2 . . . . . . . . . . . Garrison Access 5 | . . . . . . . 1 1 2 . . . . . . . 1 . . Total Hacks 190 | . . 3 15 . 1 . 26 48 25 7 . . . . 48 . 12 4 1 Successful 121 | . . . 5 . 1 . 13 28 12 7 . . . . 48 . 4 3 . Failed 69 | . . 3 10 . . . 13 20 13 . . . . . . . 8 1 1 Catastrophic 12 | . . 2 1 . . . . 1 3 . . . . . . . 4 . 1 Database Lockouts . | . . . . . . . . . . . . . . . . . . . . Manual 85 | . . 3 9 . 1 . 22 27 13 . . . . . . . 6 3 1 Terminals 110 | . . 3 15 . . . 24 33 21 . . . . . . . 9 4 1 Fabricators 6 | . . . . . . . . 6 . . . . . . . . . . . Repair Stations . | . . . . . . . . . . . . . . . . . . . . Recycling Units . | . . . . . . . . . . . . . . . . . . . . Scanalyzers 6 | . . . . . . . . 6 . . . . . . . . . . . Garrison Access 12 | . . . . . . . 2 3 4 . . . . . . . 3 . . Terminal Hacks 87 | . . . 4 . 1 . 6 11 5 7 . . . . 48 . 3 2 . Record 44 | . . . 1 . . . . 1 . 6 . . . . 36 . . . . Part Schematic 4 | . . . . . . . . . . . . . . . 4 . . . . Robot Analysis 4 | . . . . . . . . . . . . . . . 4 . . . . Prototype ID Bank 4 | . . . . . . . . . . . . . . . 4 . . . . Open Door 1 | . . . . . . . . . . 1 . . . . . . . . . Open DSF 2 | . . . . . . . . . . . . . . . . . 2 . . Level Access Points 2 | . . . . . . . . 1 . . . . . . . . . 1 . Branch Access Points 3 | . . . 1 . . . 1 1 . . . . . . . . . . . Terminal Index 5 | . . . 1 . . . 1 1 1 . . . . . . . . 1 . Fabricator Index 1 | . . . . . . . . . 1 . . . . . . . . . . Garrison Index 1 | . . . . . . . . . 1 . . . . . . . . . . Unreport Threat 1 | . . . . . . . . 1 . . . . . . . . . . . Locate Traps 3 | . . . . . . . . . 2 . . . . . . . 1 . . Transport Status 2 | . . . . . . . 2 . . . . . . . . . . . . Recall Investigation 2 | . . . . . . . . 2 . . . . . . . . . . . Hauler Manifests 2 | . . . . . . . 1 1 . . . . . . . . . . . Registered Components 2 | . . . . . . . 1 1 . . . . . . . . . . . Zone Layout 3 | . . . 1 . . . . 2 . . . . . . . . . . . Derelict Proto ID Bank 1 | . . . . . 1 . . . . . . . . . . . . . . Fabricator Hacks 4 | . . . . . . . . 4 . . . . . . . . . . . Load Schematic 2 | . . . . . . . . 2 . . . . . . . . . . . Build 2 | . . . . . . . . 2 . . . . . . . . . . . Repair Station Hacks . | . . . . . . . . . . . . . . . . . . . . Recycling Unit Hacks . | . . . . . . . . . . . . . . . . . . . . Scanalyzer 6 | . . . . . . . . 6 . . . . . . . . . . . Insert Component 2 | . . . . . . . . 2 . . . . . . . . . . . Analyze 4 | . . . . . . . . 4 . . . . . . . . . . . Garrison Access Hacks 5 | . . . . . . . 1 1 2 . . . . . . . 1 . . Seal Access 5 | . . . . . . . 1 1 2 . . . . . . . 1 . . Unauthorized Hacks 19 | . . . 1 . . . 6 6 5 . . . . . . . . 1 . Terminals 19 | . . . 1 . . . 6 6 5 . . . . . . . . 1 . Assimilate 1 | . . . . . . . . . . . . . . . . . . 1 . Botnet 17 | . . . . . . . 6 6 5 . . . . . . . . . . Operators 1 | . . . 1 . . . . . . . . . . . . . . . . Fabricators . | . . . . . . . . . . . . . . . . . . . . Repair Stations . | . . . . . . . . . . . . . . . . . . . . Recycling Units . | . . . . . . . . . . . . . . . . . . . . Scanalyzers . | . . . . . . . . . . . . . . . . . . . . Garrison Access . | . . . . . . . . . . . . . . . . . . . . Data Cores Recovered 1 | . . . 1 . . . . . . . . . . . . . . . . Used 1 | . . . 1 . . . . . . . . . . . . . . . . Hacking Detections 36 | . . 1 3 . . . 7 10 6 . . . . . . . 5 3 1 Full Trace Events 12 | . . . 1 . . . 4 5 . . . . . . . . 2 . . Feedback Events 1 | . . . . . . . . . . . . . . . . . 1 . . Corruption 1 | . . . . . . . . . . . . . . . . . 1 . . Feedback Blocked . | . . . . . . . . . . . . . . . . . . . . Robot Schematics Acquired . | . . . . . . . . . . . . . . . . . . . . Robots Built . | . . . . . . . . . . . . . . . . . . . . Authchips . | . . . . . . . . . . . . . . . . . . . . Time . | . . . . . . . . . . . . . . . . . . . . Total Robot Build Rating . | . . . . . . . . . . . . . . . . . . . . Part Schematics Acquired 6 | . . . . . . . . 2 . . . . . . 4 . . . . Parts Built 4 | . . . . . . . . 4 . . . . . . . . . . . Authchips . | . . . . . . . . . . . . . . . . . . . . Time 84 | . . . . . . . . 84 . . . . . . . . . . . Total Part Build Rating 16 | . . . . . . . . 16 . . . . . . . . . . . Parts Repaired . | . . . . . . . . . . . . . . . . . . . . Time . | . . . . . . . . . . . . . . . . . . . . Parts Recycled . | . . . . . . . . . . . . . . . . . . . . Recycled Matter . | . . . . . . . . . . . . . . . . . . . . Retrieved Matter . | . . . . . . . . . . . . . . . . . . . . Retrieved Components . | . . . . . . . . . . . . . . . . . . . . Parts Scanalyzed 2 | . . . . . . . . 2 . . . . . . . . . . . Part Schematics Acquired 2 | . . . . . . . . 2 . . . . . . . . . . . Parts Damaged . | . . . . . . . . . . . . . . . . . . . . Bothacking | -11 -10 -10 -9 -9 -9 -8 -8 -7 -6 -6 -6 -5 -5 -5 -5 -4 -4 -3 -2 ------------ Run | Yrd Mat Min Mat Min Exi Min Mat Fac Fac Low Low Fac Upp Upp Zhi Pro Fac Res Res Used RIF Installer . | . . . . . . . . . . . . . . . . . . . . Robots Hacked . | . . . . . . . . . . . . . . . . . . . . Non-combat . | . . . . . . . . . . . . . . . . . . . . Combat . | . . . . . . . . . . . . . . . . . . . . Robot Hacks Applied . | . . . . . . . . . . . . . . . . . . . . Relay Couplers Released . | . . . . . . . . . . . . . . . . . . . . Fabnet Peak Effective % . | . . . . . . . . . . . . . . . . . . . . Robots Rewired . | . . . . . . . . . . . . . . . . . . . . Allies Hacked . | . . . . . . . . . . . . . . . . . . . . Hacks Repelled . | . . . . . . . . . . . . . . . . . . . . Allies | -11 -10 -10 -9 -9 -9 -8 -8 -7 -6 -6 -6 -5 -5 -5 -5 -4 -4 -3 -2 -------- Run | Yrd Mat Min Mat Min Exi Min Mat Fac Fac Low Low Fac Upp Upp Zhi Pro Fac Res Res Total Allies 1 | . . . . . . . . . . . . . . . . . . 1 . Largest Group 1 | . . . . . . . . . . . . . . . . . . 1 . Highest-Rated Group 26 | . . . . . . . . . . . . . . . . . . 26 . Highest-Rated Ally 26 | . . . . . . . . . . . . . . . . . . 26 . Total Orders 3 | . . . . . . . . . . . . . 3 . . . . . . EXPLORE 3 | . . . . . . . . . . . . . 3 . . . . . . Ally Attacks 10 | . . . . . . 10 . . . . . . . . . . . . . Total Damage 542 | . . . . . . 542 . . . . . . . . . . . . . Kills 6 | . . . . . . 6 . . . . . . . . . . . . . Allies Corrupted . | . . . . . . . . . . . . . . . . . . . . Allies Melted . | . . . . . . . . . . . . . . . . . . . . Turrets Deployed 3 | . . . . . . 3 . . . . . . . . . . . . . Intel | -11 -10 -10 -9 -9 -9 -8 -8 -7 -6 -6 -6 -5 -5 -5 -5 -4 -4 -3 -2 ------- Run | Yrd Mat Min Mat Min Exi Min Mat Fac Fac Low Low Fac Upp Upp Zhi Pro Fac Res Res Robot Analysis Total 4 | . . . . . . . . . . . . . . . 4 . . . . Derelict Logs Recovered 8 | . . 2 . 1 . . . . . 1 . . 3 1 . . . . . Drone Launches 5 | . . . . . . . . . . . . . 5 . . . . . . Drone Recoveries 2 | . . . . . . . . . . . . . 2 . . . . . . Exploration | -11 -10 -10 -9 -9 -9 -8 -8 -7 -6 -6 -6 -5 -5 -5 -5 -4 -4 -3 -2 ------------- Run | Yrd Mat Min Mat Min Exi Min Mat Fac Fac Low Low Fac Upp Upp Zhi Pro Fac Res Res Turns Passed 13544 | 59 1142 610 1331 1061 368 805 2342 1164 1027 285 13 100 435 127 240 307 1419 526 183 Spaces Moved 15403 | 51 712 455 621 595 292 527 1261 2343 2001 946 45 311 1107 321 344 619 1507 877 468 Core 199 | 3 . . . . . . 15 . . . . . . . 95 . 6 . 80 Treads 582 | 1 183 . 223 55 . . 120 . . . . . . . . . . . . Legs 108 | . . . . . . . . . . . . . . . . . 108 . . Wheels 4031 | 47 529 455 398 540 292 527 1126 . . . . . . . . . 117 . . Hover 614 | . . . . . . . . . . . . . . . . . 614 . . Flight 9869 | . . . . . . . . 2343 2001 946 45 311 1107 321 249 619 662 877 388 Fastest Speed 23 | 50 80 110 125 125 125 125 95 30 29 29 29 29 29 34 35 35 23 24 24 Average Speed 66 | 93 140 124 166 135 125 125 144 32 30 29 29 29 30 34 61 41 60 25 32 Slowest Speed 650 | 160 240 125 240 240 125 125 650 112 114 29 29 29 108 35 315 175 355 27 102 Overloaded Moves 123 | . . . . . . . . . . . . . . . . . 67 . 56 Propulsion Burnouts . | . . . . . . . . . . . . . . . . . . . . Robots Hopped 22 | . . . . . . 1 . 5 3 . . . . . . . 3 9 1 Cave-ins Triggered 2 | . . . . . . . . . . . . . . . . . 2 . . Teleports 1 | . . . . . . . . . . . . . . . 1 . . . . Exploration Rate (%) 53 | 4 94 74 57 89 76 88 84 48 50 91 14 8 78 45 62 55 23 15 18 Regions Visited 19 Branch Regions 10 Pre-discovered Areas 5 | . . . . 2 . . . . . . . . . . 3 . . . . Known Exits Taken 5 | . . . 1 . . 1 . 1 . . . . . . . . 1 1 . Unknown Exits Taken 14 | 1 1 1 . 1 1 . 1 . 1 1 1 1 1 1 1 1 . . . Scrap Searched 11 | . . 1 . 1 . . . . . 3 1 . 3 . . 2 . . . Spaces Dug 240 | . . . . . . . 6 14 80 . . 1 . . . . 139 . . Terrain Destroyed 772 | . 9 26 . 80 . 24 138 74 226 . . 1 . 44 . . 150 . . Melee 67 | . . . . . . . 6 14 39 . . 1 . . . . 7 . . Projectile 12 | . . . . . . . 1 . . . . . . . . . 11 . . AOE 692 | . 9 26 . 80 . 24 131 60 187 . . . . 44 . . 131 . . Terrain Rammed . | . . . . . . . . . . . . . . . . . . . . Walls Destroyed . | . . . . . . . . . . . . . . . . . . . . Machines Disabled . | . . . . . . . . . . . . . . . . . . . . Actions | -11 -10 -10 -9 -9 -9 -8 -8 -7 -6 -6 -6 -5 -5 -5 -5 -4 -4 -3 -2 --------- Run | Yrd Mat Min Mat Min Exi Min Mat Fac Fac Low Low Fac Upp Upp Zhi Pro Fac Res Res Total 17857 | 60 802 479 838 747 295 672 1562 2672 2305 955 44 319 1204 328 364 654 1897 1171 489 Wait 1506 | . 35 7 136 85 . 134 103 185 202 10 . . 88 . . 18 219 280 4 Move 15339 | 50 711 454 620 594 291 524 1260 2332 1994 945 44 310 1106 320 343 618 1499 858 466 Hop 22 | . . . . . . 1 . 5 3 . . . . . . . 3 9 1 Pick Up 145 | 4 13 1 17 4 3 2 26 14 13 . . 2 2 . 3 2 31 6 2 Fast Attach 32 | 4 1 . 1 . . . 1 7 1 . . . 2 . 4 . 11 . . Attach 142 | 2 3 2 7 5 . 2 17 31 10 . . 3 2 1 4 4 33 9 7 Detach 45 | . . 2 . . . . . 21 2 . . 2 1 . 1 3 6 4 3 Swap 74 | . 4 3 3 9 . 2 29 10 7 . . . . 1 1 . 5 . . Drop 94 | . 7 1 8 . 1 6 13 17 8 . . 1 3 . 4 1 21 3 . Fire 347 | . 28 9 46 49 . 1 105 16 12 . . . . 3 3 8 60 2 5 Melee 108 | . . . . . . . 7 34 53 . . 1 . 3 1 . 8 . 1 Ram 1 | . . . . . . . 1 . . . . . . . . . . . . Kick . | . . . . . . . . . . . . . . . . . . . . Crush 1 | . . . . 1 . . . . . . . . . . . . . . . Escape Stasis 1 | . . . . . . . . . . . . . . . . . 1 . . Rewire . | . . . . . . . . . . . . . . . . . . . . Trap . | . . . . . . . . . . . . . . . . . . . . Miscellaneous . | . . . . . . . . . . . . . . . . . . . . Route ------- -11/Scrapyard -10/Materials (discovered 3 exits: *Mat x2 / *Min) -10/Mines (discovered 2 exits: *Mat x2) -9/Materials (discovered 3 exits: *Mat / *Min / *Sto) -9/Mines (discovered 3 exits: *Mat x2 / *Exi) -9/Exiles -8/Mines -8/Materials (discovered 2 exits: *Fac x2) -7/Factory (discovered 6 exits: *Fac x4 / *Low x2) -6/Factory (discovered 4 exits: [*Fac x3] / *Low) -6/Lower Caves -6/Lower Caves -5/Factory -5/Upper Caves -5/Upper Caves -5/Zhirov -4/Proximity Caves -4/Factory (discovered 2 exits: *Res / [*Upp]) -3/Research (discovered 3 exits: *Res x3) -2/Research History --------- Turn | Location | Event 17 | -11/Scrapyard | Discovered new exit (range 16) 60 | -11/Scrapyard | Entered Materials 181 | -10/Materials | Discovered new exit (range 12) 303 | -10/Materials | Build established: Mutant 688 | -10/Materials | Discovered new exit (range 11) 1182 | -10/Materials | Discovered new exit (range 12) 1202 | -10/Materials | Entered Mines 1258 | -10/Mines | Discovered new exit (range 10) 1633 | -10/Mines | Learned location of 2 exits from Materials 1780 | -10/Mines | Discovered new exit (range 11) 1812 | -10/Mines | Entered Materials 1812 | -9/Materials | Evolved 2 slots: Propulsion x1, Utility x1 1813 | -9/Materials | Identified exit to Storage 1814 | -9/Materials | Identified exit to Materials 1814 | -9/Materials | Identified exit to Mines 3143 | -9/Materials | Entered Mines 3234 | -9/Mines | Discovered exit to Materials (range 6) 3349 | -9/Mines | Discovered exit to Materials (range 16) 3606 | -9/Mines | Excavation squad dispatched 3606 | -9/Mines | A large section of the Mines collapsed 4091 | -9/Mines | Found a damaged Exp. Sensor Array with a note attached 4097 | -9/Mines | Found Prototype Device 4100 | -9/Mines | Identified Exp. Sensor Array 4130 | -9/Mines | Learned location of Zion (-7) 4133 | -9/Mines | Learned location of Storage (-9) 4196 | -9/Mines | Deemed a non-threat by the Exiles lab entrance 4197 | -9/Mines | Discovered new exit (range 5) 4204 | -9/Mines | Entered Exiles 4233 | -9/Exiles | Met 8R-AWN 4256 | -9/Exiles | Met EX-HEX 4297 | -9/Exiles | Met EX-BIN 4312 | -9/Exiles | Aligned with FarCom system 4313 | -9/Exiles | Given EX-Vault access code 4342 | -9/Exiles | Opened EX-Vault 4353 | -9/Exiles | Found Deploy-a-Sentry 4355 | -9/Exiles | Found Deploy-a-Sentry 4358 | -9/Exiles | Found Deploy-a-Sentry 4383 | -9/Exiles | Warned to stay clear of 0b10 Research branches 4417 | -9/Exiles | Met EX-DEC 4458 | -9/Exiles | Visited The Gauntlet 4557 | -9/Exiles | Discovered new exit (range 14) 4572 | -9/Exiles | Left Exiles lab with Deploy-a-Sentry 4572 | -9/Exiles | Entered Mines 4659 | -8/Mines | DAS Turret deployed 4673 | -8/Mines | DAS Turret deployed 4825 | -8/Mines | DAS Turret deployed 5327 | -8/Mines | Discovered exit to Materials (range 8) 5377 | -8/Mines | Entered Materials 5377 | -8/Materials | Evolved 2 slots: Utility x2 5673 | -8/Materials | Lost 7 parts (1p4n2u) 6173 | -8/Materials | Discovered new exit (range 3) 6703 | -8/Materials | Destroyed 7 combat bots 6892 | -8/Materials | Discovered new exit (range 15) 7088 | -8/Materials | Build established: Scavenger-Mutant 7427 | -8/Materials | Core integrity fell below 50% 7719 | -8/Materials | Entered Factory 7719 | -7/Factory | Evolved 2 slots: Propulsion x1, Utility x1 7780 | -7/Factory | Identified exit to Lower Caves 7780 | -7/Factory | Identified exit to Factory 8193 | -7/Factory | Build established: Hacker-Sprinter 8643 | -7/Factory | Fabricated Xenon Bombardment Thruster (x2) 8699 | -7/Factory | Core integrity fell below 50% 8729 | -7/Factory | Lost 5 parts (1p2n1u1w) 8757 | -7/Factory | Fabricated Xenon Bombardment Thruster (x2) 8883 | -7/Factory | Entered another Factory area 8883 | -6/Factory | Evolved 2 slots: Power x1, Utility x1 8968 | -6/Factory | Destroyed 11 combat bots 8968 | -6/Factory | Lost 4 parts (1p1u2w) 8980 | -6/Factory | Discovered new exit (range 4) 8990 | -6/Factory | Found Launcher Loader 9226 | -6/Factory | Spotted B-75 Beast 9263 | -6/Factory | Discovered new exit (range 8) 9583 | -6/Factory | First assault squad dispatched 9735 | -6/Factory | Discovered new exit (range 15) 9881 | -6/Factory | Discovered new exit (range 12) 9910 | -6/Factory | Entered Lower Caves 9912 | -6/Lower Caves | Learned Factory security intel 10025 | -6/Lower Caves | Learned Research security intel 10025 | -6/Lower Caves | Learned Research garrison access intel 10025 | -6/Lower Caves | Learned Armory garrison access intel 10074 | -6/Lower Caves | Encountered a Warlord checkpoint 10131 | -6/Lower Caves | Discovered new exit (range 14) 10195 | -6/Lower Caves | Entered another Lower Caves area 10204 | -6/Lower Caves | Discovered new exit (range 11) 10208 | -6/Lower Caves | Entered Factory 10208 | -5/Factory | Evolved 2 slots: Utility x2 10305 | -5/Factory | Discovered new exit (range 9) 10308 | -5/Factory | Entered Upper Caves 10330 | -5/Upper Caves | Learned Factory terminal intel 10331 | -5/Upper Caves | Attracted the attention of an 0b10 checkpoint 10620 | -5/Upper Caves | Attacked by a faux Warlord 10686 | -5/Upper Caves | Ambushed by research squad 10718 | -5/Upper Caves | Learned Factory terminal intel 10732 | -5/Upper Caves | Discovered new exit (range 8) 10734 | -5/Upper Caves | Encountered a Warlord checkpoint 10736 | -5/Upper Caves | Learned Factory terminal intel 10743 | -5/Upper Caves | Entered another Upper Caves area 10778 | -5/Upper Caves | Learned location of 1 exit from Factory 10868 | -5/Upper Caves | Discovered new exit (range 4) 10870 | -5/Upper Caves | Entered Zhirov 10870 | -5/Zhirov | Discovered new exit (range 3) 10877 | -5/Zhirov | Met Zhirov 10887 | -5/Zhirov | Found Alien Artifact 10888 | -5/Zhirov | Identified Transdimensional Reconstructor 10888 | -5/Zhirov | Warped through subspace 10968 | -5/Zhirov | Found Alien Artifact 10968 | -5/Zhirov | Identified Integrated Reactor 10968 | -5/Zhirov | Installed Integrated Reactor, increased core energy generation (+10) 10991 | -5/Zhirov | Build established: Hacker-Mutant 10992 | -5/Zhirov | Learned location of Quarantine (-2) 10992 | -5/Zhirov | Learned location of Testing (-3) 10992 | -5/Zhirov | Learned location of Command (-1) 10995 | -5/Zhirov | Zhirov requested help retrieving the SGEMP Prototype 11110 | -5/Zhirov | Entered Proximity Caves 11412 | -4/Proximity Caves | Discovered new exit (range 11) 11417 | -4/Proximity Caves | Entered Factory 11417 | -4/Factory | Evolved 2 slots: Propulsion x1, Utility x1 11418 | -4/Factory | Identified exit to Research 11419 | -4/Factory | Loaded intel: 25 terminal locations 11626 | -4/Factory | Crushed by falling debris 11629 | -4/Factory | Crushed by falling debris 11692 | -4/Factory | Lost 6 parts (2n4w) 11860 | -4/Factory | Discovered new exit (range 6) 12399 | -4/Factory | Core integrity fell below 50% 12434 | -4/Factory | Lost 3 parts (1n1u1w) 12836 | -4/Factory | Entered Research 12836 | -3/Research | Evolved 2 slots: Utility x2 12838 | -3/Research | Loaded intel: 3 garrison access locations 12958 | -3/Research | Lost 3 parts (1p1n1u) 13110 | -3/Research | Build established: Wizard-Sprinter 13321 | -3/Research | Identified exit to Research 13362 | -3/Research | Entered another Research area 13362 | -2/Research | Evolved 2 slots: Power x1, Utility x1 13479 | -2/Research | Found Enh. Force Lance 13516 | -2/Research | Core integrity fell below 50% 13532 | -2/Research | Lost 9 parts (1p5n3u) 13537 | -2/Research | Core integrity fell below 20% 13545 | -2/Research | Destroyed by C-57 Dissector with Dual-blade Saw Last Messages --------------- K-01 Serf knocked back. Imp. Hacking Suite destroyed. Wave Gun severed. Quantum Rifle severed. Adv. Transmission Jammer destroyed. Cld. Field Propulsion Drive destroyed. Enh. Force Lance severed. Adv. ECM Suite severed. Hacking Suite severed. Armor Integrity Analyzer severed. Adv. Hacking Suite severed. Hacking Suite severed. System Shield severed. U-05 Engineer lays Concrete. U-05 Engineer builds a Door. U-05 Engineer lays Concrete. Connecting with Terminal... K-01 Serf cleans the Terminal. C-57 Dissector destroyed. [Achievement: This Is Interesting...] Map ----- +----------------------------------------------------+ | # + "???? | | ### # ""##### "???? | | ??# # ""#???# "???? | | ??# # ""######+#+########### T#### "???? | | ???# + T# !#???????##??????????? | | ???# # ! ""# #???????????????????? | | ???# # ""# """""" #???????????????????? | | ???# # ""# """""" #???????????????????? | | #### # # """""" #???????????????????? | | " # # ] # #???????????????????? | | " # ######### #???????????????????? | | " # # ## #???????????????????? | | " # # ## #???????????????????? | | # # ## !! #???????????????????? | | # # ## ]! = #??????????????????? | | # # ## [ ] #?????????????????? | | # # *###############?????????????????? | | +### # # ?????????????????????????# | | # # ??????????????????????????# | | # # ??????????????????????????# | | # # ???????????????????????????# | | # # ???????????????????????????? | | +### # # ?????????????????????????????? | | # # ?? ?????????????????????????????? | | # ###+######+#############+###?????????##### | | "" # c c c@ #????????# | | """# ^ #????????# | | S"# ! +????????# ] | | """# s""" #????????#= ] | | """############### %s """ ########????????+ | | ## # ! """ #???????????????# | | ## # #???????????????# [[ | | ##### # #???????????????# | | ????# + #???###?????????##### | | ????# # "" #???# ?????????????# | | ????# + s""" #???# #?????????????# | | ????# ## s "T #?### ###???????????# | | ????# ## """ m #?# ######??????# | | ????# ## "" H### ######## | | ????# [ ## | | ????# ##% "## ######## | | ????# + ### ## #????? | | ????################## C #?###+#### #??? | | ????????????????????######+#/##### ## #? ! | | ????????????????????# # ## # | | ????????????????????# # =## # "" "" | | ????????????????????# # ## # ""G"" | | ????????????????????# # /## ##+##### | | ????????????????????# % # ## | | ????????????????????# # ] + | +----------------------------------------------------+ Best States ------------- Heat Dissipation 57 Energy Generation 35 Energy Capacity 450 Matter Stores 450 Matter Capacity 450 Sight Range 20 Robot Scan Range 20 Terrain Scan Density 10 ECM Strength 2 Jamming Range 16 Additional Mass Support 9 Armor Coverage 525 Utility Shielding 90 Evasion (%) 65 Targeting Accuracy 8 Melee Accuracy 6 Target Analysis 6 Armor Integrity Analysis 30 Recoil Reduction 2 Offensive Hacking 50 Defensive Hacking 10 Item Schematics ----------------- Xenon Bombardment Thruster | -7/Factory | Scanalyzed Hvy. Missile Launcher | -7/Factory | Scanalyzed Assault Drone Bay | -5/Zhirov | Free Exp. Heat Sink | -5/Zhirov | Free Exp. Optical Array | -5/Zhirov | Free Imp. Arc Thrower | -5/Zhirov | Free Robot Schematics ------------------ None Fabricated ------------ Xenon Bombardment Thruster | x2 | -7/Factory Xenon Bombardment Thruster | x2 | -7/Factory Alien Tech Used ----------------- Transdimensional Reconstructor Integrated Reactor Achievements -------------- Alien Tech Armchair Analyst Explorer Subspace Traveler The Science Guy This Is Interesting... Challenges ------------ None Game ------ Seed MissileUltimateBeamcaster Manual? 0 Play Time 03:20:06 Cumulative 48.6 hours Start 2024.04.10 @ 10:13:44 End 2024.04.10 @ 13:45:48 Sessions 1 Manual Loads 0 Difficulty Rogue Special Mode None Game No. 49 Rogue 49 Adventurer 0 Explorer 0 Win Type - Total 0 Types 0/0/0/0/0/0/0/0/0 Lore% 25 Gallery% 40 Achievement% 30 Wizard Run 0 Options --------- Layout 2 ASCII 0 Keyboard 0 Movement Numpad Keybinds 0 Fullscreen 2 Font 24/Smallcaps Map View 50x44 Zoom Use 0% Tactical HUD 0 Map Filters NONE Filters NONE Steam 1 RUN: 7d5fd405-6387-46c5-a9d9-36c52c0a9c78